fUST/lending_fUST_20240509
["ID","MTS","AMOUNT","RATE_DAILY","PERIOD"]
[326649196,1715199067586,-500.0,0.00025205,2]
[326649197,1715199067596,-4309.74,0.00025205,2]
[326649198,1715199067606,-500.0,0.00025205,2]
[326649199,1715199067615,-500.0,0.00025205,2]
[326649200,1715199067625,-500.0,0.00025205,2]
[326649201,1715199067636,-500.0,0.00025205,2]
[326649202,1715199067646,-500.0,0.00025205,2]
[326649203,1715199067655,-500.0,0.00025205,2]
[326649204,1715199067665,-500.0,0.00025205,2]
[326649205,1715199067675,-1439.54,0.00025205,2]
[326649206,1715199067684,-579.32,0.00025205,2]
[326649207,1715199067795,-595.9,0.00025205,2]
[326649208,1715199067807,-500.0,0.00025205,2]
[326649209,1715199067817,-500.0,0.00025205,2]
[326649210,1715199067827,-500.0,0.00025205,2]
[326649211,1715199067837,-2030.56,0.00025205,2]
[326649212,1715199067847,-949.19,0.00025205,2]
[326649213,1715199067856,-500.0,0.00025205,2]
[326649214,1715199067865,-4686.96,0.00025205,2]
[326649215,1715199067875,-500.0,0.00025205,2]
[326649216,1715199067884,-500.0,0.00025205,2]
[326649217,1715199067894,-7047.1,0.00025205,2]
[326649218,1715199067903,-500.0,0.00025205,2]
[326649219,1715199067913,-500.0,0.00025205,2]
[326649220,1715199067922,-500.0,0.00025205,2]
[326649221,1715199067931,-500.0,0.00025205,2]
[326649222,1715199067944,-3516.26,0.00025205,2]
[326649223,1715199067954,-500.0,0.00025205,2]
[326649224,1715199067964,-7672.45,0.00025205,2]
[326649225,1715199067974,-500.0,0.00025205,2]
[326649226,1715199067984,-500.0,0.00025205,2]
[326649227,1715199067994,-500.0,0.00025205,2]
[326649228,1715199068003,-559.0,0.00025205,2]
[326649229,1715199068013,-500.0,0.00025205,2]
[326649230,1715199068023,-500.0,0.00025205,2]
[326649231,1715199068033,-1159.93,0.00025205,2]
[326649232,1715199068043,-500.0,0.00025205,2]
[326649233,1715199068053,-500.0,0.00025205,2]
[326649234,1715199068062,-808.6,0.00025205,2]
[326649235,1715199068072,-500.0,0.00025205,2]
[326649236,1715199068082,-1109.77,0.00025205,2]
[326649237,1715199068093,-569.29,0.00025205,2]
[326649238,1715199068103,-792.42,0.00025205,2]
[326649239,1715199068113,-393.02270767,0.00025205,2]
[326649240,1715199068122,-500.0,0.00025205,2]
[326649241,1715199068133,-510.68692728,0.00025205,2]
[326649242,1715199068143,-468.30411772,0.00025205,2]
[326649243,1715199068154,-500.0,0.00025205,2]
[326649244,1715199068163,-500.0,0.00025205,2]
[326649245,1715199068173,-500.0,0.00025205,2]
[326649246,1715199068182,-500.0,0.00025205,2]
[326649247,1715199068192,-500.0,0.00025205,2]
[326649248,1715199068201,-500.0,0.00025205,2]
[326649249,1715199068213,-360.95852736,0.00025205,2]
[326649250,1715199068223,-500.0,0.00025205,2]
[326649251,1715199068232,-2779.81,0.00025205,2]
[326649252,1715199068242,-20490.02,0.00025205,2]
[326649253,1715199068252,-617.84910359,0.00025205,2]
[326649254,1715199068267,-500.0,0.00025205,2]
[326649255,1715199068277,-500.0,0.00025205,2]
[326649256,1715199068287,-500.0,0.00025205,2]
[326649257,1715199068297,-500.0,0.00025205,2]
[326649258,1715199068306,-500.0,0.00025205,2]
[326649259,1715199068316,-500.0,0.00025205,2]
[326649260,1715199068325,-800.11,0.00025205,2]
[326649261,1715199068334,-500.0,0.00025205,2]
[326649262,1715199068346,-500.0,0.00025205,2]
[326649263,1715199068357,-500.0,0.00025205,2]
[326649264,1715199068366,-500.0,0.00025205,2]
[326649265,1715199068375,-902.39,0.00025205,2]
[326649266,1715199068385,-500.0,0.00025205,2]
[326649267,1715199068395,-500.0,0.00025205,2]
[326649268,1715199068404,-500.0,0.00025205,2]
[326649269,1715199068413,-1308.72,0.00025205,2]
[326649270,1715199068422,-242.04657904,0.00025205,2]
[326649271,1715199068432,-1399.75,0.00025205,2]
[326649272,1715199068441,-500.0,0.00025205,2]
[326649273,1715199068450,-664.75,0.00025205,2]
[326649274,1715199068466,-500.0,0.00025205,2]
[326649275,1715199068475,-500.0,0.00025205,2]
[326649276,1715199068484,-500.0,0.00025205,2]
[326649277,1715199068492,-500.0,0.00025205,2]
[326649278,1715199068502,-757.25,0.00025205,2]
[326649279,1715199068510,-509.7,0.00025205,2]
[326649280,1715199068520,-3456.41,0.00025205,2]
[326649281,1715199068528,-500.0,0.00025205,2]
[326649282,1715199068538,-1252.54,0.00025205,2]
[326649283,1715199068547,-500.0,0.00025205,2]
[326649284,1715199068556,-500.0,0.00025205,2]
[326649285,1715199068565,-500.0,0.00025205,2]
[326649286,1715199068574,-864.02,0.00025205,2]
[326649287,1715199068583,-882.22,0.00025205,2]
[326649288,1715199068592,-500.0,0.00025205,2]
[326649289,1715199068601,-500.0,0.00025205,2]
[326649290,1715199068610,-970.11,0.00025205,2]
[326649291,1715199068619,-500.0,0.00025205,2]
[326649292,1715199068629,-500.0,0.00025205,2]
[326649293,1715199068639,-3213.74,0.00025205,2]
[326649294,1715199068648,-1137.07823293,0.00025208,2]
[326649295,1715199068657,-320.0,0.00025221,2]
[326649296,1715199068666,-153.0,0.00025233,2]
[326649297,1715199068675,-1137.07823293,0.00025245,2]
[326649298,1715199068685,-1040.0,0.00025254,2]
[326649299,1715199068694,-1040.0,0.00025263,2]
[326649300,1715199068706,-1137.07823293,0.00025265,2]
[326649301,1715199068715,-150.91370362,0.00025274,2]
[326649302,1715199068724,-1137.07823293,0.00025314,2]
[326649303,1715199068732,-152.58301555,0.00025342,2]
[326649304,1715199068741,-152.58301555,0.00025352,2]
[326649305,1715199068750,-1137.07823293,0.00025358,2]
[326649306,1715199068760,-875.58579862,0.00025374,2]
[326649307,1715199068769,-115553.72874575,0.00025397,4]
[326649308,1715199068779,-156.9622489,0.00025399,2]
[326649309,1715199068789,-153.0,0.00025399,2]
[326649310,1715199068798,-153.0,0.00025399,2]
[326649311,1715199068808,-153.0,0.00025399,2]
[326649312,1715199068817,-153.0,0.00025399,2]
[326649313,1715199068826,-153.0,0.00025399,2]
[326649314,1715199068835,-153.0,0.00025399,2]
[326649315,1715199068844,-306.0,0.00025399,2]
[326649316,1715199068854,-153.0,0.00025399,2]
[326649317,1715199068863,-153.0,0.00025399,2]
[326649318,1715199068872,-1137.07823293,0.00025417,2]
[326649319,1715199068881,-1040.0,0.00025427,2]
[326649320,1715199068890,-875.58579862,0.00025462,2]
[326649321,1715199068906,-157.86546882,0.00025478,2]
[326649322,1715199068923,-500.0,0.00025479,2]
[326649323,1715199068935,-500.0,0.00025479,2]
[326649324,1715199068945,-500.0,0.00025479,2]
[326649325,1715199068958,-500.0,0.00025479,2]
[326649326,1715199068967,-500.0,0.00025479,2]
[326649327,1715199068977,-500.0,0.00025479,2]
[326649328,1715199068986,-500.0,0.00025479,2]
[326649329,1715199068995,-500.0,0.00025479,2]
[326649330,1715199069006,-650.98,0.00025479,2]
[326649331,1715199069015,-500.0,0.00025479,2]
[326649332,1715199069025,-500.0,0.00025479,2]
[326649333,1715199069035,-500.0,0.00025479,2]
[326649334,1715199069045,-500.0,0.00025479,2]
[326649335,1715199069055,-500.0,0.00025479,2]
[326649336,1715199069064,-500.0,0.00025479,2]
[326649337,1715199069074,-500.0,0.00025479,2]
[326649338,1715199069083,-500.0,0.00025479,2]
[326649339,1715199069095,-500.0,0.00025479,2]
[326649340,1715199069105,-574.0,0.00025479,2]
[326649341,1715199069115,-500.0,0.00025479,2]
[326649342,1715199069124,-500.0,0.00025479,2]
[326649343,1715199069134,-500.0,0.00025479,2]
[326649344,1715199069143,-500.0,0.00025479,2]
[326649345,1715199069153,-500.0,0.00025479,2]
[326649346,1715199069162,-500.0,0.00025479,2]
[326649347,1715199069171,-500.0,0.00025479,2]
[326649348,1715199069180,-601.56389585,0.00025479,2]
[326649349,1715199069190,-500.0,0.00025479,2]
[326649350,1715199069199,-500.0,0.00025479,2]
[326649351,1715199069214,-502.75929577,0.00025479,2]
[326649352,1715199069223,-500.0,0.00025479,2]
[326649353,1715199069233,-500.0,0.00025479,2]
[326649354,1715199069242,-500.0,0.00025479,2]
[326649355,1715199069253,-500.0,0.00025479,2]
[326649356,1715199069264,-500.0,0.00025479,2]
[326649357,1715199069273,-500.0,0.00025479,2]
[326649358,1715199069283,-504.3128266,0.00025479,2]
[326649359,1715199069292,-626.65085901,0.00025479,2]
[326649360,1715199069302,-500.0,0.00025479,2]
[326649361,1715199069312,-501.3256857,0.00025479,2]
[326649362,1715199069322,-500.0,0.00025479,2]
[326649363,1715199069332,-571.12,0.00025479,2]
[326649364,1715199069344,-500.0,0.00025479,2]
[326649365,1715199069354,-786.55,0.00025479,2]
[326649366,1715199069363,-500.0,0.00025479,2]
[326649367,1715199069372,-500.0,0.00025479,2]
[326649368,1715199069381,-500.0,0.00025479,2]
[326649369,1715199069391,-461.15758938,0.00025479,2]
[326649370,1715199069401,-529.65290418,0.00025479,2]
[326649371,1715199069411,-500.0,0.00025479,2]
[326649372,1715199069420,-500.0,0.00025479,2]
[326649373,1715199069431,-500.0,0.00025479,2]
[326649374,1715199069441,-500.0,0.00025479,2]
[326649375,1715199069450,-500.0,0.00025479,2]
[326649376,1715199069463,-1000.0,0.00025479,2]
[326649377,1715199069472,-500.0,0.00025479,2]
[326649378,1715199069482,-601.02,0.00025479,2]
[326649379,1715199069491,-500.0,0.00025479,2]
[326649380,1715199069500,-536.09118608,0.00025479,2]
[326649381,1715199069512,-500.0,0.00025479,2]
[326649382,1715199069532,-194.13271619,0.00025479,2]
[326649383,1715199069544,-500.0,0.00025479,2]
[326649384,1715199069554,-500.0,0.00025479,2]
[326649385,1715199069564,-1032.78,0.00025479,2]
[326649386,1715199069573,-2277.28,0.00025479,2]
[326649387,1715199069583,-500.0,0.00025479,2]
[326649388,1715199069593,-936.19,0.00025479,2]
[326649389,1715199069603,-500.0,0.00025479,2]
[326649390,1715199069613,-899.18,0.00025479,2]
[326649391,1715199069623,-500.0,0.00025479,2]
[326649392,1715199069632,-500.0,0.00025479,2]
[326649393,1715199069642,-500.0,0.00025479,2]
[326649394,1715199069652,-500.0,0.00025479,2]
[326649395,1715199069661,-500.0,0.00025479,2]
[326649396,1715199069671,-500.0,0.00025479,2]
[326649397,1715199069679,-500.0,0.00025479,2]
[326649398,1715199069687,-500.0,0.00025479,2]
[326649399,1715199069694,-500.0,0.00025479,2]
[326649400,1715199069702,-500.0,0.00025479,2]
[326649401,1715199069712,-500.0,0.00025479,2]
[326649402,1715199069719,-481.9185985,0.00025479,2]
[326649403,1715199069726,-500.0,0.00025479,2]
[326649404,1715199069733,-500.0,0.00025479,2]
[326649405,1715199069740,-303.12194208,0.00025479,2]
[326649406,1715199069747,-500.0,0.00025479,2]
[326649407,1715199069754,-500.0,0.00025479,2]
[326649408,1715199069762,-174.19742946,0.00025479,2]
[326649409,1715199069772,-500.0,0.00025479,2]
[326649410,1715199069782,-500.0,0.00025479,2]
[326649411,1715199069791,-1818.87,0.00025479,2]
[326649412,1715199069801,-500.0,0.00025479,2]
[326649413,1715199069810,-500.0,0.00025479,2]
[326649414,1715199069820,-500.0,0.00025479,2]
[326649415,1715199069831,-494.05366465,0.00025479,2]
[326649416,1715199069840,-500.0,0.00025479,2]
[326649417,1715199069850,-1908.19,0.00025479,2]
[326649418,1715199069859,-500.0,0.00025479,2]
[326649419,1715199069869,-500.0,0.00025479,2]
[326649420,1715199069878,-500.0,0.00025479,2]
[326649421,1715199069888,-500.0,0.00025479,2]
[326649422,1715199069898,-500.0,0.00025479,2]
[326649423,1715199069908,-500.0,0.00025479,2]
[326649424,1715199069919,-500.0,0.00025479,2]
[326649425,1715199070029,-500.0,0.00025479,2]
[326649426,1715199070040,-500.0,0.00025479,2]
[326649427,1715199070050,-629.42,0.00025479,2]
[326649428,1715199070060,-500.0,0.00025479,2]
[326649429,1715199070070,-500.0,0.00025479,2]
[326649430,1715199070081,-399.13181764,0.00025479,2]
[326649431,1715199070094,-500.0,0.00025479,2]
[326649432,1715199070105,-500.0,0.00025479,2]
[326649433,1715199070114,-500.0,0.00025479,2]
[326649434,1715199070124,-500.0,0.00025479,2]
[326649435,1715199070134,-500.0,0.00025479,2]
[326649436,1715199070144,-527.63,0.00025479,2]
[326649437,1715199070155,-500.0,0.00025479,2]
[326649438,1715199070165,-500.0,0.00025479,2]
[326649439,1715199070175,-300.0,0.00025479,2]
[326649440,1715199070185,-500.0,0.00025479,2]
[326649441,1715199070195,-500.0,0.00025479,2]
[326649442,1715199070209,-500.0,0.00025479,2]
[326649443,1715199070220,-500.0,0.00025479,2]
[326649444,1715199070230,-500.0,0.00025479,2]
[326649445,1715199070240,-500.0,0.00025479,2]
[326649446,1715199070251,-500.0,0.00025479,2]
[326649447,1715199070264,-500.0,0.00025479,2]
[326649448,1715199070274,-1086.76,0.00025479,2]
[326649449,1715199070284,-500.0,0.00025479,2]
[326649450,1715199070295,-530.34,0.00025479,2]
[326649451,1715199070307,-500.0,0.00025479,2]
[326649452,1715199070318,-500.0,0.00025479,2]
[326649453,1715199070328,-500.0,0.00025479,2]
[326649454,1715199070339,-500.0,0.00025479,2]
[326649455,1715199070349,-500.0,0.00025479,2]
[326649456,1715199070360,-500.0,0.00025479,2]
[326649457,1715199070370,-500.0,0.00025479,2]
[326649458,1715199070379,-950.42,0.00025479,2]
[326649459,1715199070388,-7463.0,0.00025479,2]
[326649460,1715199070398,-500.0,0.00025479,2]
[326649461,1715199070408,-1701.32,0.00025479,2]
[326649462,1715199070417,-525.56988123,0.00025479,2]
[326649463,1715199070426,-997.07,0.00025479,2]
[326649464,1715199070437,-500.0,0.00025479,2]
[326649465,1715199070446,-500.0,0.00025479,2]
[326649466,1715199070457,-500.0,0.00025479,2]
[326649467,1715199070467,-514.61,0.00025479,2]
[326649468,1715199070476,-500.0,0.00025479,2]
[326649469,1715199070486,-3523.15,0.00025479,2]
[326649470,1715199070495,-500.0,0.00025479,2]
[326649471,1715199070505,-500.0,0.00025479,2]
[326649472,1715199070515,-500.0,0.00025479,2]
[326649473,1715199070525,-500.0,0.00025479,2]
[326649474,1715199070534,-500.0,0.00025479,2]
[326649475,1715199070544,-505.36,0.00025479,2]
[326649476,1715199070554,-500.0,0.00025479,2]
[326649477,1715199070564,-745.46,0.00025479,2]
[326649478,1715199070574,-500.0,0.00025479,2]
[326649479,1715199070584,-500.0,0.00025479,2]
[326649480,1715199070594,-500.0,0.00025479,2]
[326649481,1715199070603,-500.0,0.00025479,2]
[326649482,1715199070613,-1757.68,0.00025479,2]
[326649483,1715199070623,-500.0,0.00025479,2]
[326649484,1715199070633,-500.0,0.00025479,2]
[326649485,1715199070642,-941.12,0.00025479,2]
[326649486,1715199070652,-500.0,0.00025479,2]
[326649487,1715199070663,-500.0,0.00025479,2]
[326649488,1715199070672,-500.0,0.00025479,2]
[326649489,1715199070682,-545.29505927,0.00025479,2]
[326649490,1715199070692,-500.0,0.00025479,2]
[326649491,1715199070701,-500.0,0.00025479,2]
[326649492,1715199070715,-748.52,0.00025479,2]
[326649493,1715199070725,-500.0,0.00025479,2]
[326649494,1715199070737,-2015.2,0.00025479,2]
[326649495,1715199070747,-500.0,0.00025479,2]
[326649496,1715199070758,-500.0,0.00025479,2]
[326649497,1715199070768,-500.0,0.00025479,2]
[326649498,1715199070777,-500.0,0.00025479,2]
[326649499,1715199070787,-500.0,0.00025479,2]
[326649500,1715199070796,-500.0,0.00025479,2]
[326649501,1715199070806,-500.0,0.00025479,2]
[326649502,1715199070816,-500.0,0.00025479,2]
[326649503,1715199070825,-850.5,0.00025479,2]
[326649504,1715199070835,-4323.66,0.00025479,2]
[326649505,1715199070844,-500.0,0.00025479,2]
[326649506,1715199070854,-502.28859977,0.00025479,2]
[326649507,1715199070863,-500.0,0.00025479,2]
[326649508,1715199070872,-500.0,0.00025479,2]
[326649509,1715199070882,-4309.74,0.00025479,2]
[326649510,1715199070891,-500.0,0.00025479,2]
[326649511,1715199070901,-500.0,0.00025479,2]
[326649512,1715199070910,-500.0,0.00025479,2]
[326649513,1715199070919,-500.0,0.00025479,2]
[326649514,1715199070929,-500.0,0.00025479,2]
[326649515,1715199070939,-500.0,0.00025479,2]
[326649516,1715199070949,-500.0,0.00025479,2]
[326649517,1715199070964,-579.32,0.00025479,2]
[326649518,1715199070974,-1439.54,0.00025479,2]
[326649519,1715199070983,-500.0,0.00025479,2]
[326649520,1715199070993,-500.0,0.00025479,2]
[326649521,1715199071002,-500.0,0.00025479,2]
[326649522,1715199071012,-2030.56,0.00025479,2]
[326649523,1715199071021,-949.19,0.00025479,2]
[326649524,1715199071031,-500.0,0.00025479,2]
[326649525,1715199071041,-500.0,0.00025479,2]
[326649526,1715199071051,-4686.96,0.00025479,2]
[326649527,1715199071060,-500.0,0.00025479,2]
[326649528,1715199071072,-7047.1,0.00025479,2]
[326649529,1715199071091,-500.0,0.00025479,2]
[326649530,1715199071110,-500.0,0.00025479,2]
[326649531,1715199071121,-3516.26,0.00025479,2]
[326649532,1715199071131,-500.0,0.00025479,2]
[326649533,1715199071141,-604.84874248,0.00025479,2]
[326649534,1715199071151,-7672.45,0.00025479,2]
[326649535,1715199071161,-500.0,0.00025479,2]
[326649536,1715199071171,-500.0,0.00025479,2]
[326649537,1715199071181,-500.0,0.00025479,2]
[326649538,1715199071191,-559.0,0.00025479,2]
[326649539,1715199071201,-500.0,0.00025479,2]
[326649540,1715199071213,-500.0,0.00025479,2]
[326649541,1715199071223,-1159.93,0.00025479,2]
[326649542,1715199071233,-325.82690834,0.00025479,2]
[326649543,1715199071243,-500.0,0.00025479,2]
[326649544,1715199071254,-808.6,0.00025479,2]
[326649545,1715199071266,-500.0,0.00025479,2]
[326649546,1715199071276,-1109.77,0.00025479,2]
[326649547,1715199071286,-569.29,0.00025479,2]
[326649548,1715199071295,-792.42,0.00025479,2]
[326649549,1715199071305,-500.0,0.00025479,2]
[326649550,1715199071314,-500.0,0.00025479,2]
[326649551,1715199071324,-500.0,0.00025479,2]
[326649552,1715199071334,-500.0,0.00025479,2]
[326649553,1715199071346,-500.0,0.00025479,2]
[326649554,1715199071355,-500.0,0.00025479,2]
[326649555,1715199071365,-500.0,0.00025479,2]
[326649556,1715199071374,-500.0,0.00025479,2]
[326649557,1715199071383,-2779.81,0.00025479,2]
[326649558,1715199071392,-20490.02,0.00025479,2]
[326649559,1715199071402,-500.0,0.00025479,2]
[326649560,1715199071411,-500.0,0.00025479,2]
[326649561,1715199071420,-500.0,0.00025479,2]
[326649562,1715199071430,-500.0,0.00025479,2]
[326649563,1715199071439,-800.11,0.00025479,2]
[326649564,1715199071448,-500.0,0.00025479,2]
[326649565,1715199071459,-500.0,0.00025479,2]
[326649566,1715199071468,-500.0,0.00025479,2]
[326649567,1715199071477,-536.19842632,0.00025479,2]
[326649568,1715199071486,-902.39,0.00025479,2]
[326649569,1715199071496,-500.0,0.00025479,2]
[326649570,1715199071505,-500.0,0.00025479,2]
[326649571,1715199071514,-500.0,0.00025479,2]
[326649572,1715199071523,-1308.72,0.00025479,2]
[326649573,1715199071533,-1399.75,0.00025479,2]
[326649574,1715199071542,-500.0,0.00025479,2]
[326649575,1715199071552,-664.75,0.00025479,2]
[326649576,1715199071561,-500.0,0.00025479,2]
[326649577,1715199071571,-500.0,0.00025479,2]
[326649578,1715199071580,-500.0,0.00025479,2]
[326649579,1715199071590,-500.0,0.00025479,2]
[326649580,1715199071599,-757.25,0.00025479,2]
[326649581,1715199071608,-509.7,0.00025479,2]
[326649582,1715199071618,-3456.41,0.00025479,2]
[326649583,1715199071627,-500.0,0.00025479,2]
[326649584,1715199071636,-1252.54,0.00025479,2]
[326649585,1715199071649,-500.0,0.00025479,2]
[326649586,1715199071661,-500.0,0.00025479,2]
[326649587,1715199071671,-500.0,0.00025479,2]
[326649588,1715199071682,-864.02,0.00025479,2]
[326649589,1715199071692,-882.22,0.00025479,2]
[326649590,1715199071702,-970.11,0.00025479,2]
[326649591,1715199071714,-500.0,0.00025479,2]
[326649592,1715199071723,-500.0,0.00025479,2]
[326649593,1715199071732,-500.0,0.00025479,2]
[326649594,1715199071741,-500.0,0.00025479,2]
[326649595,1715199071750,-3213.74,0.00025479,2]
[326649596,1715199071759,-1040.0,0.00025515,2]
[326649597,1715199071769,-150.91370362,0.0002552,2]
[326649598,1715199071778,-1137.07823293,0.00025541,2]
[326649599,1715199071788,-875.58579862,0.0002555,2]
[326649600,1715199071798,-1040.0,0.00025559,2]
[326649601,1715199071807,-150.91370362,0.00025568,2]
[326649602,1715199071817,-1040.0,0.00025579,2]
[326649603,1715199071826,-150.91370362,0.00025601,2]
[326649604,1715199071835,-381.4206257,0.00025617,2]
[326649605,1715199071844,-150.0,0.00025619,2]
[326649606,1715199071853,-152.58301555,0.0002565,2]
[326649607,1715199071863,-150.91370362,0.00025655,2]
[326649608,1715199071872,-150.91370362,0.00025657,2]
[326649609,1715199071881,-875.58579862,0.00025699,2]
[326649610,1715199071891,-190.97577956,0.00025715,2]
[326649611,1715199071900,-192225.02,0.00025722,2]
[326649612,1715199071910,-240.99639,0.00025727,2]
[326649613,1715199071919,-875.58579862,0.00025738,2]
[326649614,1715199071928,-586.78336079,0.00025753,2]
[326649615,1715199071938,-500.0,0.00025753,2]
[326649616,1715199071948,-500.0,0.00025753,2]
[326649617,1715199071958,-500.0,0.00025753,2]
[326649618,1715199071967,-500.0,0.00025753,2]
[326649619,1715199071977,-500.0,0.00025753,2]
[326649620,1715199071985,-500.0,0.00025753,2]
[326649621,1715199071995,-500.0,0.00025753,2]
[326649622,1715199072004,-650.98,0.00025753,2]
[326649623,1715199072014,-500.0,0.00025753,2]
[326649624,1715199072024,-500.0,0.00025753,2]
[326649625,1715199072033,-500.0,0.00025753,2]
[326649626,1715199072139,-360.42519886,0.00025753,2]
[326649627,1715199072148,-572.06698273,0.00025753,2]
[326649628,1715199072158,-500.0,0.00025753,2]
[326649629,1715199072167,-500.0,0.00025753,2]
[326649630,1715199072177,-500.0,0.00025753,2]
[326649631,1715199072188,-177.94020693,0.00025753,2]
[326649632,1715199072200,-574.0,0.00025753,2]
[326649633,1715199072212,-500.0,0.00025753,2]
[326649634,1715199072221,-500.0,0.00025753,2]
[326649635,1715199072230,-500.0,0.00025753,2]
[326649636,1715199072239,-500.0,0.00025753,2]
[326649637,1715199072249,-593.29580992,0.00025753,2]
[326649638,1715199072263,-500.0,0.00025753,2]
[326649639,1715199072273,-500.0,0.00025753,2]
[326649640,1715199072282,-500.0,0.00025753,2]
[326649641,1715199072292,-500.0,0.00025753,2]
[326649642,1715199072303,-358.3928554,0.00025753,2]
[326649643,1715199072312,-500.0,0.00025753,2]
[326649644,1715199072321,-500.0,0.00025753,2]
[326649645,1715199072331,-635.85282145,0.00025753,2]
[326649646,1715199072341,-500.0,0.00025753,2]
[326649647,1715199072353,-500.0,0.00025753,2]
[326649648,1715199072362,-500.0,0.00025753,2]
[326649649,1715199072372,-571.12,0.00025753,2]
[326649650,1715199072381,-786.55,0.00025753,2]
[326649651,1715199072390,-500.0,0.00025753,2]
[326649652,1715199072399,-500.0,0.00025753,2]
[326649653,1715199072409,-500.0,0.00025753,2]
[326649654,1715199072419,-500.0,0.00025753,2]
[326649655,1715199072428,-500.0,0.00025753,2]
[326649656,1715199072437,-500.0,0.00025753,2]
[326649657,1715199072446,-1000.0,0.00025753,2]
[326649658,1715199072456,-601.02,0.00025753,2]
[326649659,1715199072465,-500.0,0.00025753,2]
[326649660,1715199072474,-500.0,0.00025753,2]
[326649661,1715199072483,-520.19638498,0.00025753,2]
[326649662,1715199072492,-500.0,0.00025753,2]
[326649663,1715199072502,-500.0,0.00025753,2]
[326649664,1715199072511,-1032.78,0.00025753,2]
[326649665,1715199072520,-2277.28,0.00025753,2]
[326649666,1715199072530,-936.19,0.00025753,2]
[326649667,1715199072540,-498.18685974,0.00025753,2]
[326649668,1715199072549,-500.0,0.00025753,2]
[326649669,1715199072558,-899.18,0.00025753,2]
[326649670,1715199072567,-500.0,0.00025753,2]
[326649671,1715199072576,-500.0,0.00025753,2]
[326649672,1715199072585,-500.0,0.00025753,2]
[326649673,1715199072594,-444.36849236,0.00025753,2]
[326649674,1715199072603,-500.0,0.00025753,2]
[326649675,1715199072613,-500.0,0.00025753,2]
[326649676,1715199072623,-500.0,0.00025753,2]
[326649677,1715199072632,-500.0,0.00025753,2]
[326649678,1715199072642,-500.0,0.00025753,2]
[326649679,1715199072651,-500.0,0.00025753,2]
[326649680,1715199072660,-500.0,0.00025753,2]
[326649681,1715199072669,-500.0,0.00025753,2]
[326649682,1715199072679,-500.0,0.00025753,2]
[326649683,1715199072688,-500.0,0.00025753,2]
[326649684,1715199072699,-500.0,0.00025753,2]
[326649685,1715199072709,-500.0,0.00025753,2]
[326649686,1715199072719,-1818.87,0.00025753,2]
[326649687,1715199072728,-629.7,0.00025753,2]
[326649688,1715199072739,-500.0,0.00025753,2]
[326649689,1715199072750,-220.20374985,0.00025753,2]
[326649690,1715199072760,-500.0,0.00025753,2]
[326649691,1715199072769,-1908.19,0.00025753,2]
[326649692,1715199072779,-500.0,0.00025753,2]
[326649693,1715199072788,-500.0,0.00025753,2]
[326649694,1715199072797,-500.0,0.00025753,2]
[326649695,1715199072807,-500.0,0.00025753,2]